﻿Unique ID,Headline,Start Date,Start Time,Venue Name,Event Cost,Tags (genre),"Categories
(type of event)",Real Description,Link to more info,Link to book cover image,Status of Event Post
1198,"Spiritual Classics Book Club reads ""The Fire Next Time""",8/26/2019,7:30 PM,Last Bookstore,Purchase Required,"August 2019,Nonfiction",Book Club,"At some point, everyone has to wrestle with personal belief and one’s orientation to the universe. Whether addressing origins or destiny, what lies inside or what’s “out there” – it’s a good bet that those who’ve come before have something to offer. In this club, we dive into the best wisdom we can find, across faith traditions, guided by author & journalist Nick Shindo Street.

At this meeting, the club will read James Baldwin's essential ""The Fire Next Time."" ",http://lastbookstorela.com/events/spiritual-classics-book-club/,http://lastbookstorela.com/wp-content/uploads/2019/04/SPIRITUAL-POSTER-1.jpg,Pending Review
1200,"Gothic Book Club reads ""A Good Man is Hard to Find""",8/27/2019,9:30 PM,Last Bookstore,Purchase Required,"August 2019,Mystery | Crime | Horror | Thriller",Book Club,"Ye olde Gothic worms its way into many genres and art forms, from horror to architecture to shoes. The books – old and new – have a lasting allure. In this club, we reminisce and bring back to life the short stories of Gothic times. This book club is led by Bram Stoker Award winner John Palisano. 

At this meeting, the club will read ""A Good Man is Hard to Find"" by Flannery O'Connor. ",http://lastbookstorela.com/events/gothic-book-club-with-john-palisano/,http://lastbookstorela.com/wp-content/uploads/2019/08/goodmanishardtofind.jpg,Pending Review
1282,"Lisa Schwartz discusses and signs ""Thirty-Life Crisis""",8/27/2019,7:00 PM,Barnes &amp; Noble - The Grove,Purchase Required,"August 2019,Memoir",Discussion and Signing,"Come see Lisa Schwartz at her discussion and signing of ""Thirty-Life Crisis"" at the Grove Barnes and Noble. This book is perfect for anyone dealing with the challenges, indignities, & celebrations that come with being a thirty-something.",https://stores.barnesandnoble.com/event/9780062030882-0,https://prodimage.images-bn.com/pimages/9781538763094_p0_v2_s600x595.jpg,Pending Review
1077,"Louise Penny discusses and signs ""A Better Man"" ",9/1/2019,3:00 PM,Vroman's - Main,Purchase Required,"September 2019,Fiction",Discussion and Signing,"Louise Penny will discuss and sign ""A Better Man"" at Vroman's Bookstore. This book brings several character arcs to a close while resetting others to make this psychological mystery serve both as a beginning for new readers and a satisfying continuation for series fans. ",https://www.vromansbookstore.com/event/vroman%E2%80%99s-bookstore-presents-afternoon-louise-penny,https://www.vromansbookstore.com/sites/vromansbookstore.com/files/9-1%20Louise%20Penny.png,Pending Review
1220,"Naomi Hirahara discusses and signs ""Iced in Paradise""",9/3/2019,7:00 PM,Vroman's - Main,Free,"September 2019,Mystery | Crime | Horror | Thriller,What's Hot in September 2019",Discussion and Signing,"Join Naomi Nirahara at Vroman's Bookstore for a discussion and signing of ""Iced in Paradise: A Leilani Santiago Hawai'i Mystery."" This book a delicious multicultural mystery with an instantly lovable heroine, lively family dynamics, and a vivid sense of place.
",https://www.vromansbookstore.com/event/naomi-hirahara-discusses-and-signs-iced-paradise-leilani-santiago-hawaii-mystery,https://www.vromansbookstore.com/sites/vromansbookstore.com/files/9-3%20Naomi%20Hirahara.png,Pending Review
1071,"Brandy Colbert reads and signs ""The Revolution of Birdie Randolph"" with Jade Chang",9/4/2019,7:30 PM,Skylight Books,Free,"September 2019,Fiction,What's Hot in September 2019",Discussion and Signing,"Join Brandy Colbert and Jade Chang at Skylight Books for a reading and signing of ""The Revolution of Birdie Randolph."" This book is perfect for fans of Nina LaCour and Nicola Yoon as it is a novel about first love and family secrets from Stonewall Book Award winner Brandy Colbert.",https://www.skylightbooks.com/event/brandy-colbert-reads-her-new-ya-novel-revolution-birdie-randolph-jade-chang,https://images.booksense.com/images/567/448/9780316448567.jpg,Pending Review
1249,"John Doe, Tom Desavia, Pleasant Gehman & Friends discuss and sign ""More Fun in the New World""",9/4/2019,7:00 PM,Last Bookstore,Free,"September 2019,Music,History,What's Hot in September 2019",Discussion and Signing,"Come see a panel discussion with John Doe, Tom Desavia, Pleasant Gehman and friends about  ""More Fun in the New World: The Unmaking and Legacy of L.A. Punk"" at the Last Bookstore. This book explores the years 1982 to 1987, covering the dizzying pinnacle of L.A.’s punk rock movement as its stars took to the national — and often international — stage.",http://lastbookstorela.com/events/more-fun-in-the-new-world-the-unmaking-and-legacy-of-l-a-punk-with-john-doe-tom-desavia-friends/,http://lastbookstorela.com/wp-content/uploads/2019/08/morefuninthenewworld.jpeg,Pending Review
1264,"Gay Lippmann discusses and signs ""Set the Controls for the Heart of Sharon Tate""",9/4/2019,7:00 PM,Book Soup,Free,"September 2019,Mystery | Crime | Horror | Thriller",Discussion and Signing,"Gary Lippman will discuss and sign ""Set the Controls for the Heart of Sharon Tate"". This book is a comical, wistful and perverse book that tackles the nature of reality and the dehumanizing elements of fame and celebrity. ",https://www.booksoup.com/event/gary-lippman-discusses-and-signs-set-controls-heart-sharon-tate,https://images.booksense.com/images/263/280/9781644280263.jpg,Pending Review
1265,"Katherine McGee discusses and signs ""American Royals"" with The Fug Girls",9/4/2019,7:00 PM,Chevalier's Books,Free,"September 2019,Romance",Discussion and Signing,"Join Dr. Sunita Puri at Chavelier's Books for a discussion and signing of ""American Royals"" with the Fug Girls. This book imagines an alternate version of the modern world, one where the glittering age of monarchies has not yet faded--and where love is still powerful enough to change the course of history.",https://www.chevaliersbooks.com/katharine-mcgee,https://static.wixstatic.com/media/308b68_6cd53087de1a42afb7f94f2fc1768bd3~mv2.jpg,Pending Review
1311,"Emerson Forester discusses and signs ""People of Pasadena"" ",9/4/2019,6:00 PM,Vroman's - Main,Free,"September 2019,Nonfiction,Art",Discussion and Signing,"Join Emerson Forester for a discussion and signing of her book ""People of Pasadena"" at Vroman's Bookstore. This book is a powerful reminder that we have more similarities than differences and is a celebration of all things Pasadena. ",https://www.vromansbookstore.com/event/emerson-forester-discusses-and-signs-people-pasadena,,Pending Review
1136,"Emma Steinkellner reads and signs ""The Okay Witch"" with Barbra Dillon",9/5/2019,7:30 PM,Skylight Books,Free,"September 2019,Speculative Fiction",Discussion and Signing,"Come see Emma Steinkellner with Barbra Dillon discuss and sign ""The Okay Witch"" at Skylight Books. This book travels with its primary female lead as she embarks on an adventure that spans centuries, generations, and even worlds – as she unravels the legacy at the heart of her life.",https://www.skylightbooks.com/event/emma-steinkellner-reads-her-debut-graphic-novel-okay-witch-barbra-dillon,https://images.booksense.com/images/454/431/9781534431454.jpg,Pending Review
1152,"Kathalynn Turner Davis discusses and signs ""Kiss Me, Swami""",9/5/2019,7:00 PM,Book Soup,Free,"September 2019,Memoir,What's Hot in September 2019",Discussion and Signing,"If you enjoy inspirational memoirs, check out Kathalynn Turner Davis and ""Kiss Me, Swami: The Spiritual Education of a Beauty Queen"" at Book Soup. 
This book is a joyous but reflective tale that shows how getting in touch with introspection and self-knowledge can alter your life in positive ways you have only been able to dream about. ",https://www.booksoup.com/event/kathalynn-turner-davis-discusses-and-signs-kiss-me-swami-spiritual-education-beauty-queen,,Pending Review
1242,"Grace Mase discuss and sign ""Revivify Your Home"" ",9/5/2019,7:30 PM,Last Bookstore,Free,"September 2019,Healing | Self-Help | Motivational",Discussion and Signing,"Join Grace Mase for a discussion and signing of ""Revivify Your Home"" at the Last Bookstore. This book is will help you upgrade your life by empowering you to improve your home with confidence and peace of mind.",http://lastbookstorela.com/events/revivify-your-home-with-grace-mase/,http://lastbookstorela.com/wp-content/uploads/2019/07/RevivifyYourHome_cover.jpg,Pending Review
1260,"Tom DeSavia, Allison Anders and Louie Perez discuss and sign ""More Fun in the World"" ",9/5/2019,7:00 PM,Vroman's - Main,Free,"September 2019,Music,History",Discussion and Signing,"Come check out John Doe, Tom Desavia, and Pleasant Gehman discuss ""More Fun in the New World: The Unmaking and Legacy of L.A. Punk"" at Vroman's Bookstore. This book explores the years 1982 to 1987, covering the dizzying pinnacle of L.A.’s punk rock movement as its stars took to the national — and often international — stage.",https://www.vromansbookstore.com/event/john-doe-tom-desavia-allison-anders-filmmaker-louie-perez-los-lobos-discuss-and-sign-more-fun,https://www.vromansbookstore.com/sites/vromansbookstore.com/files/9-5%20John%20Doe%20and%20Tom%20DeSavia_1.png,Pending Review
1266,"Howard Michael Gould discusses and signs ""Below the Line"" with Wendall Thomas",9/5/2019,7:00 PM,Chevalier's Books,Free,"September 2019,Mystery | Crime | Horror | Thriller",Discussion and Signing,"Chevalier's Books presents Howard Michael Gould, in conversation with Wendall Thomas, to discuss and sign ""Below the Line."" This book is a suspense, murder mystery thriller that takes its reader on a journey to follow the case of of a high-profile Hollywood actor's murder and the web of characters involved. ",https://www.chevaliersbooks.com/howard-michael-gould,https://static.wixstatic.com/media/308b68_f2ee057b08114756a73b07e0b2ded06e~mv2.jpg,Pending Review
1072,"Patrick Coleman discusses and signs ""The Churchgoer"" with Tod Goldberg",9/6/2019,7:30 PM,Skylight Books,Free,"September 2019,Fiction",Discussion and Signing,"Come out to Skylight Books for an evening with Patrick Coleman, Tod Goldberg and ""The Churchgoer.'"" This book is a haunting debut literary noir about a former pastor’s search to find a missing woman in the toxic, contradictory underbelly of southern California.
",https://www.skylightbooks.com/event/patrick-coleman-reads-his-debut-novel-churchgoer-tod-goldberg,https://images.booksense.com/images/109/864/9780062864109.jpg,Pending Review
1153,"Jorjeana Marie discusses and signs ""Improv for Writers"" ",9/6/2019,7:00 PM,Book Soup,Free,"September 2019,Healing | Self-Help | Motivational",Discussion and Signing,"Book Soup presents Jorjeana Marie to discuss and sign ""Improv for Writers: 10 Secrets to Help Novelists and Screenwriters Bypass Writer's Block and Generate Infinite Ideas."" This book introduces the rules and techniques of improvisation as they apply to fiction writing, improv instructor and writer Jorjeana Marie addresses each major element of storytelling by applying writer's-block-busting games and inner-critic-quieting exercises to get the creative ideas flowing.",https://www.booksoup.com/event/jorjeana-marie-discusses-and-signs-improv-writers-10-secrets-help-novelists-and-screenwriters,https://images.booksense.com/images/035/582/9780399582035.jpg,Pending Review
1194,"Rick Ross discusses and signs ""Hurricanes: A Memoir""",9/6/2019,8:00 PM,Other - see description,Purchase Required,"September 2019,Memoir",Discussion and Signing,"Books Soup presents Rick Ross to discuss and sign ""Hurricanes: A Memoir"" at the Zipper Concert Hall.  This book is a revealing portrait of one of the biggest stars in the rap game, and an intimate look at the birth of an artist.

",https://www.booksoup.com/event/book-soup-presents-evening-rick-ross-discussing-signing-hurricanes-memoir,https://www.booksoup.com/sites/booksoup.com/files/Ross-event-banner.jpg,Pending Review
1221,"Saul Lelchuk discusses and signs ""Save Me From Dangerous Men""",9/6/2019,7:00 PM,Vroman's - Main,Free,"September 2019,Mystery | Crime | Horror | Thriller",Discussion and Signing,"Come see Saul Lelchuk discuss and sign ""Save Me From Dangerous Men"" at Vroman's Bookstore. This book is a helluva ride: a fast-paced neo-noir with a stellar new heroine at its core. This intelligent, action-packed thriller will resonate with readers as it touches on such themes as domestic violence, the widening gap between rich and poor, and the intrusive potential of advanced technologies like artificial intelligence.",https://www.vromansbookstore.com/event/saul-lelchuk-discusses-and-signs-save-me-dangerous-men,https://www.vromansbookstore.com/sites/vromansbookstore.com/files/9-6%20Saul%20Lelchuk.png,Pending Review
1313,"Mary HK Choi discusses and signs ""Permanent Record"" ",9/6/2019,7:00 PM,Barnes &amp; Noble - The Grove,Purchase Required,"September 2019,Romance",Discussion and Signing,"Come out to Barnes and Nobles in the Grove for an evening with Mary HK Choi and ""Permanent Record."" This book brings an unforgettable new romance about how social media influences relationships every day.",https://stores.barnesandnoble.com/event/9780062058027-0,https://prodimage.images-bn.com/pimages/9781534445970_p0_v3_s600x595.jpg,Pending Review
1222,"Sister Helen in conversation with Reverend Michael D. Kinman about ""River of Fire""",9/7/2019,5:00 PM,Other - see description,Purchase Required,"September 2019,Healing | Self-Help | Motivational,Memoir",Discussion and Signing,"Vroman's Bookstore presents an evening with Sister Helen Prejean, in conversation with Reverend Michael D. Kinman about ""River of Fire"" at an off-campus location on 132 N Euclid Ave in Pasadena.  This book is for anyone interested in journeys of faith and spirituality, doubt and belief, and ""catching on fire"" to purpose and passion. It is a book, written in accessible, luminous prose, about how to live a spiritual life that is wide awake to the sufferings and creative opportunities of our world. ",https://www.vromansbookstore.com/event/vroman%E2%80%99s-bookstore-presents-evening-sister-helen-prejean-conversation-reverend-michael-d,https://www.vromansbookstore.com/sites/vromansbookstore.com/files/7-7%20Sister%20Helen%20Prejean.png,Pending Review
1156,Well-Read Black Girl Book Club Meeting ,9/8/2019,4:00 PM,Book Soup,Free,"September 2019,Underrepresented Voices,Women",Book Club,"Well-Read Black Girl Book Club meets to read ""Everything Inside: Stories."" ",https://www.booksoup.com/event/well-read-black-girl-book-club-meeting-1,https://www.booksoup.com/sites/booksoup.com/files/WRBG_ABA_Banner_820x340_3.jpg,Pending Review
1248,"Dystopian Book Club reads ""We're All Gonna Die!"" ",9/8/2019,7:30 PM,Last Bookstore,Purchase Required,"September 2019,Speculative Fiction",Book Club,"This book club explores dystopia and the post-apocalypse in their bewildering array of forms with our host, NY Times bestselling author Peter Clines.  Yes, we’re doomed, but we’re doomed together. Led by Peter Clines. 

At this meeting, the book club will read ""We're All Gonna Die!"" ",http://lastbookstorela.com/events/were-all-gonna-die-dystopian-book-club-with-peter-clines/,http://lastbookstorela.com/wp-content/uploads/2019/07/bravenewworld.jpg,Pending Review
1259,"Rachel Monroe discusses and signs ""Savage Appetites"" ",9/8/2019,3:00 PM,Vroman's - Main,Free,"September 2019,Nonfiction,What's Hot in September 2019",Discussion and Signing,"If you enjoy the exploration of crime, women, violence and obsession, check out Rachel Monroe and ""Savage Appetites: Four True Stories of Women, Crime and Obsession."" In a combination of personal narrative, reportage, and a sociological examination of violence and media in the twentieth and twenty-first centuries, Savage Appetites scrupulously explores empathy, justice, and the persistent appeal of violence.",https://www.vromansbookstore.com/event/rachel-monroe-discusses-and-signs-savage-appetites-four-true-stories-women-crime-and-obsession,https://www.vromansbookstore.com/sites/vromansbookstore.com/files/9-8%20Rachel%20Monroe.png,Pending Review
1263,"Elizabeth Cantwell discusses and signs ""All The Emergency-Type Structures""",9/8/2019,5:00 PM,Skylight Books,Free,"September 2019,Poetry",Discussion and Signing,"Come out to Skylight Books for an evening with Elizabeth Cantwell and her new poetry collection ""All The Emergency-Type Structures.'"" This book guides readers through a lyrical and incisive examination of a potential way to navigate scientifically-predicted apocalyptic visions, the destructive beauty of family, and the dense forests of our collective cultural uncertainties as we attempt to create spaces that feel like home amid rising seas, private space expeditions to Mars, births, breakups, terrifying dreams, and mass extinction events.
",https://www.skylightbooks.com/event/elizabeth-cantwell-reads-her-new-poetry-collection-all-emergency-type-structures,,Pending Review
1204,"Rex Ogle discusses and signs ""Free Lunch"" ",9/9/2019,7:00 PM,Book Soup,Free,"September 2019,Memoir,What's Hot in September 2019",Discussion and Signing,"Come out and see Rex Ogle discuss and sign his debut, ""Free Lunch."" This book is a memoir, compulsively readable, beautifully crafted, and authentically told with the voice and point of view of a 6th-grade kid that captures the experience of chronic poverty in the United States. ",https://www.booksoup.com/event/rex-ogle-discusses-signs-free-lunch,https://www.booksoup.com/sites/booksoup.com/files/9-9-19.jpg,Pending Review
1205,"Caitlin Doughty discusses and signs ""Will My Cat Eat My Eyeballs?"" ",9/9/2019,8:00 PM,Other - see description,Purchase Required,"September 2019,Nonfiction",Discussion and Signing,"Book Soup & Spaceland present Ask a Mortician live with Caitlin Doughty as she discusses and signs ""Will My Cat Eat My Eyeballs?"" This book shows us that death is science and art, and only by asking questions can we begin to embrace it.
",https://www.booksoup.com/event/book-soup-spaceland-present-ask-mortician-live-caitlin-doughty,https://www.booksoup.com/sites/booksoup.com/files/doughty-cat.jpg,Pending Review
1246,"Ficción en Español Book Club reads ""La Hija de la Española""",9/9/2019,7:30 PM,Last Bookstore,Purchase Required,"September 2019,International and Translation",Book Club,"This book club reads fiction in Spanish. Here’s your chance to read great contemporary writers in their native language. Whether you read in Spanish all the time or you’re looking to get your español in peak form, this club is for you. The price for this discussion group includes a new copy of the book, a dedicated moderator, snacks & bevs, and meets right here in The Last Bookstore the second Monday of every month. Discussion will be in both English and Spanish.

At this meeting, the book club will read ""La hija de la española.""

",http://lastbookstorela.com/events/ficcion-en-espanol-book-club-with-dan-lopez-4/,http://lastbookstorela.com/wp-content/uploads/2019/07/lahijadelaespanola.jpg,Pending Review
1154,"Richard Lucas discusses and signs ""The Dog Log"" ",9/10/2019,7:00 PM,Book Soup,Free,"September 2019,Memoir",Discussion and Signing,"Richard Lucas will discuss and sign ""The Dog Log: An Accidental Memoir of Yapping Yorkies, Quarreling Neighbors, and the Unlikely Friendships That Saved My Life"" at Book Soup. This book looks into big-city loneliness, heartbreak, and, ultimately, old age, but then--one footstep at a time along the sidewalks of West Hollywood--it climbs into the light. By knocking on his neighbor's door, one man's life changes forever. ",https://www.booksoup.com/event/richard-lucas-discusses-and-signs-dog-log-accidental-memoir-yapping-yorkies-quarreling,https://images.booksense.com/images/184/601/9781641601184.jpg,Pending Review
1223,"Liza Palmer discusses and signs ""The Nobodies"" ",9/10/2019,7:00 PM,Vroman's - Main,Free,"September 2019,Fiction",Discussion and Signing,"Liza Palmer will discuss and sign ""The Nobodies"" at Vroman's Bookstore. This book is a novel about failing but never losing the core of yourself, from a beloved writer at the top of her game. ",https://www.vromansbookstore.com/event/liza-palmer-discusses-and-signs-nobodies,https://www.vromansbookstore.com/sites/vromansbookstore.com/files/9-10%20Liza%20Palmer.psd_.png,Pending Review
1247,"The Afrofuturism Book Club reads ""Everfair""",9/10/2019,7:30 PM,Last Bookstore,Purchase Required,"September 2019,Speculative Fiction,Underrepresented Voices",Book Club,"AfroFuturism is a vast, forward-looking movement with solid roots in the past. Though it spans art, music, theory – everything – we read new fiction. Led by Tyree Boyd-Pates. 

At this meeting, the Afrofuturism Book Club will read ""Everfair."" ",http://lastbookstorela.com/events/the-afrofuturism-book-club-with-tyree-boyd-pates-4/,http://lastbookstorela.com/wp-content/uploads/2019/07/everfair.jpg,Pending Review
1267,"Phil Zuckerman discusses and signs ""What It Means To Be Moral""",9/10/2019,7:00 PM,Chevalier's Books,Free,"September 2019,Nonfiction",Discussion and Signing,"Phil Zuckerman will discuss and sign ""What It Means To Be Moral"" at Chavelier's Books. In this book, the author argues that morality does not come from God. He deconstructs religious arguments for God-based morality and guides readers through the premises and promises of secular morality. It causes its readers to look to fellow humans and within themselves for moral progress and ethical action. ",https://www.chevaliersbooks.com/phil-zuckerman,https://static.wixstatic.com/media/308b68_7f9da815aad242909c9482ae74561ae3~mv2.jpg,Pending Review
1157,"Rachel Ignotofsky discusses and signs ""Women in Art""",9/11/2019,7:00 PM,Book Soup,Free,"September 2019,Biography",Discussion and Signing,"If you enjoy creative, inspiring novels, check out Rachel Ignotofsky and ""Women in Art: 50 Fearless Creatives Who Inspired the World"" at Book Soup. This book celebrates the success of the bold female creators who inspired the world and paved the way for the next generation of artists. It is a fascinating collection that contains infographics about artistic movements throughout history, statistics about women's representation in museums, and notable works by women. ",https://www.booksoup.com/event/rachel-ignotofsky-discusses-and-signs-women-art-50-fearless-creatives-who-inspired-world,https://images.booksense.com/images/437/580/9780399580437.jpg,Pending Review
1252,"Drew Minh discusses and signs ""Neon Empire""",9/11/2019,7:30 PM,Skylight Books,Free,"September 2019,Speculative Fiction,What's Hot in September 2019",Discussion and Signing,"Join Drew Minh at Skylight Books for a discussion and signing of ""Neon Empire."" This book is a radically inventive near-future thriller that follows three characters as they navigate the city’s underworld: Cedric Travers, a has-been Hollywood director; A’rore, the city’s lead social media influencer whose star is fading; and Sacha Villanova, a tech and culture reporter.",https://www.skylightbooks.com/event/drew-minh-launches-his-debut-novel-neon-empire,https://images.booksense.com/images/769/856/9781947856769.jpg,Pending Review
1158,"PEN presents ""Children of Grass"" with photographer B.A. Van Sise and poets Bryan Saito and Derrick Brown",9/12/2019,7:00 PM,Other - see description,Free,"September 2019,Art",Discussion and Signing,"Come out to Book Soup for an evening with PEN and ""Children of Grass: A Portrait of American Poetry"" at the Los Angeles Contemporary Exhibitions. Joined by photographer B.A. Van Sise and poets Brynn Saito and Derrick Brown. This book is a  celebration of contemporary American poetry and the many voices that are part of it. ",https://www.booksoup.com/event/pen-presents-ba-van-sise,https://www.booksoup.com/sites/booksoup.com/files/9-12-19.jpg,Pending Review
1224,"David Kerr discusses and signs ""Idiots to Monsters"" ",9/12/2019,7:00 PM,Vroman's - Main,Free,"September 2019,Nonfiction,Healing | Self-Help | Motivational",Discussion and Signing,"If you enjoy self-help novels about self-protection, check out David Kerr and ""Idiots to Monsters: The Essential Guide to Surviving Common Threats and Violent Encounters"" at Vroman's Books. This book teaches its readers how to avoid violence in the first place, and if you can't avoid it or manage escape, how to survive it.",https://www.vromansbookstore.com/event/david-kerr-discusses-and-signs-idiots-monsters-essential-guide-suriviving-common-threats-and,https://www.vromansbookstore.com/sites/vromansbookstore.com/files/9-12%20David%20Kerr_0.png,Pending Review
1238,"Amy Waldman discusses and signs ""A Door in the Earth""",9/12/2019,6:30 PM,DIESEL Bookstore Brentwood,Free,"September 2019,Fiction,What's Hot in September 2019",Discussion and Signing,"Amy Waldman will discuss and sign ""A Door in the Earth"" at Diesel Bookstore. This book delivers a breathtaking and achingly nuanced examination of the grays in a landscape where black and white answers have long been the only currency. A bone-chilling takedown of America's misguided use of soft power.",https://www.dieselbookstore.com/event/thursday-september-12th-630-pm-amy-waldman-discusses-and-signs-door-earth,https://images.booksense.com/images/574/451/9780316451574.jpg,Pending Review
1243,"Sandy Bleifer discusses and signs ""Downtown Up""",9/12/2019,7:30 PM,Last Bookstore,Free,"September 2019,Art,What's Hot in September 2019",Discussion and Signing,"Come see Sandy Bleifer discuss and sign ""Downtown Up"" at the Last Bookstore. This is a photographic documentary book of downtown Los Angeles at a seminal point in its revitalization beginning in the mid-1990s when the historic neighborhood was being “reinvented” by urban pioneers. ",http://lastbookstorela.com/events/downtown-up-with-sandy-bleifer/,http://lastbookstorela.com/wp-content/uploads/2019/05/downtown.jpg,Pending Review
1305,"Susan Steinberg discusses and signs ""Machine"" with Sarah Manguso",9/12/2019,7:30 PM,Skylight Books,Free,"September 2019,Fiction",Discussion and Signing,"Skylight Books presents Susan Steinberg to discuss and sign ""Machine"" with Sarah Manguso. This book revolves around a group of teenagers—both locals and wealthy out-of-towners—during a single summer at the shore. It is the kind of novel -- relentless and bold-- that only Susan Steinberg could have written. ",https://www.skylightbooks.com/event/susan-steinberg-reads-her-debut-novel-machine-sarah-manguso,,Pending Review
1159,"Keli Harding discusses and signs ""The Rabbit Effect"" ",9/13/2019,7:00 PM,Book Soup,Free,"September 2019,Nonfiction",Discussion and Signing,"Kelli Harding will discuss and sign ""The Rabbit Effect: Live Longer, Happier, and Healthier with the Groundbreaking Science of Kindness."" In this book, Harding reveals groundbreaking new research shows that love, friendship, community, life's purpose, and our environment can have a greater impact on our health than anything that happens in the doctor's office.",https://www.booksoup.com/event/kelli-harding-conversation-zay-harding-discusses-and-signs-rabbit-effect-live-longer-happier,https://images.booksense.com/images/260/184/9781501184260.jpg,Pending Review
1225,"Maika and Maritza Moulie discuss and sign ""Dear Haiti, Love Alaine""",9/13/2019,7:00 PM,Vroman's - Main,Free,"September 2019,Underrepresented Voices,Fiction,What's Hot in September 2019",Discussion and Signing,"Come out to Vroman's Bookstore for an evening with Maika and Maritza Moulite and  ""Dear Haiti, Love Alaine.'"" This book is an enchanting and engrossing novel full of wit and laughter along with a tantalizing generational mystery. The setting takes on a life of its own, plunging readers into Haiti's rich cultural traditions, breathtaking landscape, and vibrant people alongside Alaine, who will quickly become a beloved character amongst teens.""",https://www.vromansbookstore.com/event/maika-maritza-moulite-discuss-and-sign-dear-haiti-love-alaine,https://www.vromansbookstore.com/sites/vromansbookstore.com/files/9-13%20Moulite.png,Pending Review
1253,"Kelli Harding discusses and signs ""The Rabbit Effect"" with Zay Harding",9/13/2019,7:00 PM,Book Soup,Free,"September 2019,Nonfiction",Discussion and Signing,"Come see Kelli Harding in conversation with Zay Harding about ""The Rabbit Effect: Live Longer, Happier, and Healthier."" This book discovers an eye-opening and provocative new way to look at our health based on the latest groundbreaking discoveries in the science of compassion, kindness, and human connection. ",https://www.booksoup.com/event/kelli-harding-conversation-zay-harding-discusses-and-signs-rabbit-effect-live-longer-happier,https://images.booksense.com/images/260/184/9781501184260.jpg,Pending Review
1269,"Micheal Roth discusses and signs ""Safe Enough Spaces""",9/13/2019,7:00 PM,Chevalier's Books,Free,"September 2019,Nonfiction,What's Hot in September 2019",Discussion and Signing,"Join Michael Roth at Chevalier's Books for a discussion and signing of ""Safe Enough Spaces."" This book stakes out a pragmatist path through the thicket of issues facing colleges today to carry out the mission of higher education. ",https://www.chevaliersbooks.com/michael-roth,https://static.wixstatic.com/media/308b68_8cf9f7a3a0a04f1d8c3d0d3880ebc85d~mv2.jpg,Pending Review
1306,"Yesika Salgado discusses and signs ""Hermosa"" ",9/13/2019,7:30 PM,Skylight Books,Free,"September 2019,Poetry,Underrepresented Voices",Discussion and Signing,"If you enjoy inspiring poetry, check out Yesika Salgado and ""Hermosa (Not A Cult)"" at Skylight Books. This book is the path to becoming one's own home. It is a journey of firsts, of mistakes, of celebrations, of the love, the crush, the disaster, the rebuilding, and the never-ending cycle of growth. ",https://www.skylightbooks.com/event/yesika-salgado-reads-her-new-book-poetry-hermosa,,Pending Review
1160,"Ian Brennan discuss and sign ""Silenced by Sound"" with Matt Chesse",9/14/2019,4:00 PM,Book Soup,Free,"September 2019,Nonfiction",Discussion and Signing,"Come see Ian Brennan in conversation with Matt Chesse about ""Silenced by Sound: The Music Meritocracy Myth"" at Book Soup. This book is defined by muscular, terse, and poetic verse, and a nonlinear format rife with how-to tips and anecdotes. The narrative is driven by the author's ongoing field-recording chronicles, his memoir-like reveries, and the striking photographs that accompany these projects.",https://www.booksoup.com/event/ian-brennan-matt-chesse-discusses-and-signs-silenced-sound-music-meritocracy-myth,https://images.booksense.com/images/037/637/9781629637037.jpg,Pending Review
1268,"Made in L.A. Writers at the Silver Lake Library on ""Chasing the Elusive Dream""",9/14/2019,3:30 PM,Other - see description,Free,"September 2019,Fiction,Short Story Collections",Reading and Discussion,"What are dreams made of and why are they so elusive? The editors and contributors will discuss stories of obsession, longing, addiction, and ambition and how L.A. makes for the perfect setting for short fiction.

Many of the Made in L.A. Vol. 2 contributors have been meeting regularly at the Silver Lake Library as part of the Los Angeles Writers Critique Group meetings. Now those writers return with publishing credits to their name and experience reading on various stages throughout the city.

Come to the library on September 14 at 3:30 p.m. to listen to contributors read from their stories and answer questions about the creative process, writing, editing, and being published.
",https://www.eventbrite.com/e/chasing-the-elusive-dream-with-made-in-la-writers-at-silver-lake-library-tickets-69774366007,https://img.evbuc.com/https%3A%2F%2Fcdn.evbuc.com%2Fimages%2F69170287%2F114192030701%2F1%2Foriginal.20190819-212803?w=800&auto=compress&rect=0%2C0%2C2400%2C1200&s=2d891cf5407a9deb5e89cdc30adc81e7,Pending Review
1307,Reading with Anthony McCann and Brian Evenson,9/14/2019,5:00 PM,Skylight Books,Free,"September 2019,Nonfiction,Short Story Collections",Reading,"Skylight Books presents an evening with both Anthony McCann and Brian Evenson as they read from their debut novels. Anthony McCann will read from his new nonfiction book ""Shadowlands."" This book is An ""epic exploration"" of the 2016 right-wing Oregon Occupation--""an excellent microcosm by which we might better understand our difficult national history and distressing political moment."" 
Brian Evanson will read from his new short story collection ""Song for the Unraveling of the World."" This book is a collection of short stories that deal with art, paranoia and the dark urges that haunt even the most normal people.",https://www.skylightbooks.com/event/anthony-mccann-reads-his-new-nonfiction-book-shadowlands-and-brian-evenson-reads-his-new-short,,Pending Review
1161,"Jeff Abraham and Burt Kearns discuss and sign ""The Show Won't Go On""",9/15/2019,3:00 PM,Book Soup,Free,"September 2019,Nonfiction",Discussion and Signing,"Join Jeff Abraham and Burt Kearns at Book Soup for a discussion and signing of ""The Show Won't Go On: The Most Shocking Bizarre, and Historic Deaths of Performers Onstage."" This book overs almost every genre of entertainment and is full of unearthed anecdotes, exclusive interviews, colorful characters, and ironic twists. With dozens of heart-stopping stories, it's the perfect book to dip into on any page.",https://www.booksoup.com/event/jeff-abraham-and-burt-kearns-discuss-and-sign-show-won%E2%80%99t-go-most-shocking-bizarre-and-historic,https://images.booksense.com/images/174/602/9781641602174.jpg,Pending Review
961,"Kimi Eisele discusses and signs ""The Lightest Object in the Universe""",9/16/2019,7:00 PM,Vroman's - Main,Free,"July 2019,Speculative Fiction",Discussion and Signing,"Vroman's Bookstore presents Kimi Eisele to discuss and sign ""The Lightest Object in the Universe."" This book is a moving and hopeful story about resilience and adaptation and a testament to the power of community, where our best traits, born of necessity, can begin to emerge. ",https://www.vromansbookstore.com/event/kimi-eisele-discusses-and-signs-lightest-object-universe,https://www.vromansbookstore.com/sites/vromansbookstore.com/files/7-16%20Kimi%20Eisele.png,Pending Review
1134,"Ben Folds discusses and signs ""A Dream About Lightning Bugs"" with Bob Saget",9/16/2019,8:00 PM,Other - see description,Purchase Required,"September 2019,Music,Memoir",Discussion and Signing,"Book Soup and Spaceland presents Ben Folds in conversation with Bob Saget about ""A Dream about Lightning Bugs: A Life of Music and Cheap Lessons"" at the Regent Theatre. This book is a memoir that is as nuanced, witty, and relatable as his cult-classic songs.
",https://www.booksoup.com/event/book-soup-spaceland-presents-evening-ben-folds,https://www.booksoup.com/sites/booksoup.com/files/ben-folds.jpg,Pending Review
1226,"Meg Waite Clayton discusses and signs ""The Last Train to London""",9/16/2019,7:00 PM,Vroman's - Main,Free,"September 2019,Fiction",Discussion and Signing,"Join Meg Waite Clayton at Vroman's Bookstore for a discussion and signing of ""The Last Train to London."" This book is an absolutely fascinating, beautifully rendered story of love, loss, and heroism in the dark days leading up to World War II.  Clayton perfectly captures the tension and heartbreak of the times, which feel so relevant today.",https://www.vromansbookstore.com/event/meg-waite-clayton-discusses-and-signs-last-train-london,https://www.vromansbookstore.com/sites/vromansbookstore.com/files/9-16%20Meg%20Waite%20Clayton.png,Pending Review
1270,"Rachel Cline discusses and signs ""The Question Authority""",9/16/2019,7:00 PM,Chevalier's Books,Free,"September 2019,Mystery | Crime | Horror | Thriller,What's Hot in September 2019",Discussion and Signing,"Chevalier's Books presents Rachel Cline to discuss and sign ""The Question Authority."" This book was featured in a list of upcoming thriller novels dealing with the topic of the #MeToo movement from Publishers Weekly. From denial to reinvention, self-pity to self-righteousness, endless questioning to intransigent certainty, readers will recognize the ripples sent into the lives of others by one broken man.
",https://www.chevaliersbooks.com/rachel-cline,https://static.wixstatic.com/media/308b68_aaf643869510465fac2eb52ae7c1bf7a~mv2.jpg,Pending Review
1162,"Atticus presents and signs ""The Truth about Magic:",9/17/2019,7:00 PM,Book Soup,Free,"September 2019,Poetry",Discussion and Signing,"Join Atticus at Book Soup for a discussion and signing of ""The Truth about Magic: Poems."" This book is about about finding ourselves, finding our purpose, and the simple joys of life with grace, wit, and longing.",https://www.booksoup.com/event/atticus-presents-and-signs-truth-about-magic-poems,https://images.booksense.com/images/793/232/9781250232793.jpg,Pending Review
1211,"Avan Jogia discusses and signs ""Mixed Feelings""",9/17/2019,7:00 PM,Last Bookstore,Free,"September 2019,Poetry,What's Hot in September 2019",Discussion and Signing,"Come see Avan Jogia discuss and sign ""Mixed Feelings: Poems and Stories"" at the Last Book Store. This book explores the complicated emotions around race, identity, religion and family. It takes a deeply personal look at Avan’s stories, and the experiences of mixed-race individuals interviewed by Avan himself.
",http://lastbookstorela.com/events/mixed-feelings-poems-stories-with-avan-jogia/,http://lastbookstorela.com/wp-content/uploads/2019/07/9781449496210.jpg,Pending Review
1239,"Diane Leslie's Book Group discuss ""A Student of History""",9/17/2019,5:00 PM,DIESEL Bookstore Brentwood,Purchase Required,"September 2019,Fiction",Book Club,"Diane Leslie's Book Group with Author meeds to discuss Nina Revoyr's novel ""A Student of History"". Seating is limited and reservations are required for this event. There is a $20 fee, and you must purchase your copy of the book from DIESEL. Please contact Diane Leslie to reserve a spot.
",https://www.dieselbookstore.com/event/tuesday-september-17th-500-pm-diane-leslies-book-group-nina-revoyr-discuss-student-history,https://images.booksense.com/images/634/756/9781617756634.jpg,Pending Review
1240,"Literary Luncheon with Mary Beard to discuss and sign ""How Do We Look""",9/17/2019,12:00 PM,Other - see description,Purchase Required,"September 2019,Nonfiction",Luncheon,"Our DIESEL Author Literary Luncheon Series continues with Professor Mary Beard for her latest book ""How Do We Look: The Body, the Divine, and the Question of Civilization."" The luncheon will be held at the wonderful Amici Brentwood, conveniently located a half a block from the bookstore at 2538 San Vicente Blvd. There is ticketed parking available at the restaurant or unlimited free parking along most of San Vicente Blvd. past 26th St. The cost for the luncheon with Professor Beard is $65, which includes one copy of the book. Please contact the store at 310-576-9960 to purchase tickets. 


",https://www.dieselbookstore.com/event/tuesday-september-17th-1200-pm-literary-luncheon-mary-beard-discusses-and-signs-how-do-we-look,https://images.booksense.com/images/406/494/9781631494406.jpg,Pending Review
1262,"Jennifer Croft discusses and signs ""Homesick"" with Marisa Silver",9/17/2019,7:30 PM,Skylight Books,Free,"September 2019,Memoir",Discussion and Signing,"Come out to Skylight Books for an evening with Jennifer Croft as she discusses her debut memoir ""Homesick"" with Marisa Silver. This book is about learning to love language in its many forms, healing through words and the promises and perils of empathy and sisterhood.
",https://www.skylightbooks.com/event/jennifer-croft-reads-her-debut-memoir-homesick-marisa-silver,https://images.booksense.com/images/942/700/9781944700942.jpg,Pending Review
1271,"Colette Sartor discusses and signs ""Once Removed"" with Lisanne Sartor",9/17/2019,7:00 PM,Chevalier's Books,Free,"September 2019,Short Story Collections",Discussion and Signing,"Join Colette Sartor in conversation with Lisanne Sartor about ""Once Removed: Stories"" at Chevalier's Books. This book is a collection of short stories that carry the burdens imposed in the name of intimacy- the secrets kept, the lies told, the disputes initiated-  as well as the joy that can still manage to triumph. ",https://www.chevaliersbooks.com/colette-sartor,https://static.wixstatic.com/media/308b68_4cf5be72b0e04bae82d75b55bb76ecab~mv2.jpg,Pending Review
1312,"Stephen Mitchell discusses and signs ""Joseph and the Way of  Forgiveness""",9/17/2019,7:00 PM,Vroman's - Main,Free,"September 2019,Healing | Self-Help | Motivational",Discussion and Signing,"Vroman's Bookstore presents Stephen Mitchell to discuss and sign ""Joseph and the Way of Forgiveness."" This book offers us a riveting novelistic version of the Biblical tale in which Jacob's favorite son is sold into slavery and eventually becomes viceroy of Egypt.",https://www.vromansbookstore.com/event/stephen-mitchell-discusses-and-signs-joseph-and-way-forgiveness,,Pending Review
1214,"An Evening for ""Inedible in the Hippocampus"" with Special Guests",9/18/2019,8:00 PM,Stories Books and Cafe,Free,"September 2019,Nonfiction,What's Hot in September 2019",Reading,"Stories Books & Care presents an evening for ""Inedible in the Hippocampus"", a night of writings from the Me Too Movement. Edited by Shelly Oria and presented by a variety of special guests. From 8PM - 10PM. 

Location: Stories Books & Cafe, 1716 Sunset Boulevard, Los Angeles, CA. ",https://storiesla.com/?q=h.calevents,https://storiesla.com/i/8034753/events_images/event_image_7087.jpg,Pending Review
1272,"Harris Katleman and Nick Katleman discuss and sign ""You Can't Fall Off the Floor""",9/18/2019,7:00 PM,Chevalier's Books,Free,"September 2019,Memoir",Discussion and Signing,"Chevalier's Books presents Harris Katleman and Nick Katleman with their novel ""You Can't Fall Off the Floor."" This book is the story of crucial developments—how motion picture film libraries were opened for television licensing, how The Simpsons was birthed, and much more. It is also a collection of vital life lessons for anyone aspiring to establish a career in Hollywood.",https://www.chevaliersbooks.com/harris-katleman,https://static.wixstatic.com/media/308b68_a0dcc7ae884e4cd283b4dd1fe095356f~mv2.jpg,Pending Review
1315,Feminist Book Club with Julia Callahan,9/18/2019,7:30 PM,Last Bookstore,Purchase Required,"September 2019,Nonfiction",Book Club,"This club reads an intersectional variety of feminist lit – fiction, non-fiction, memoirs, etc. – led by publisher Julia Callahan of Rare Bird Books. Join us for fresh insights, perspectives, challenges, and connection.

At this meeting, the Feminist Book Club will read ""We Were Feminists Once"" by Andi Zeisler.",http://lastbookstorela.com/events/feminist-book-club-with-julia-callahan/,http://lastbookstorela.com/wp-content/uploads/2019/07/wewerefeminists.jpg,Pending Review
796,"Amir Alexander discusses and signs ""Proof!""",9/19/2019,6:30 PM,DIESEL Bookstore Brentwood,Free,"September 2019,Nonfiction",Discussion and Signing,"Come see Amir Alexander discuss and sign ""Proof!: How the World Became Geometrical"" at the Diesel Bookstore. This book tells the monumental story of the geometries that were carved into our world, the beliefs they supported, and the ways they shape our lives to this day.
",https://www.dieselbookstore.com/event/thursday-september-19th-630-pm-amir-alexander-discusses-and-signs-proof,,Pending Review
1074,"Carolina De Robertis reads and signs ""Cantoras""",9/19/2019,7:30 PM,Skylight Books,Free,"September 2019,Fiction,What's Hot in September 2019",Discussion and Signing,"Come see Carolina De Robertis read and sign ""Cantoras"" at Skylight Books. This book is a breathtaking portrait of queer love, community, forgotten history, and the strength of the human spirit. ",https://www.skylightbooks.com/event/carolina-de-robertis-reads-her-new-book-cantoras,https://images.booksense.com/images/693/521/9780525521693.jpg,Pending Review
1163,"Sarah M. Broom discusses and signs ""The Yellow House""",9/19/2019,7:00 PM,Book Soup,Free,"September 2019,Memoir",Discussion and Signing,"Book Soup presents Sarah M. Broom to discuss and sign ""The Yellow House."" This book is a brilliant memoir of place, class, race, the seeping rot of inequality, and the internalized shame that often follows. It is a transformative, deeply moving story from an unparalleled new voice of startling clarity, authority, and power. ",https://www.booksoup.com/event/sarah-m-broom-discusses-and-signs-yellow-house,https://images.booksense.com/images/088/125/9780802125088.jpg,Pending Review
1210,Queer Book Club with CB Lee ,9/19/2019,7:30 PM,Last Bookstore,Purchase Required,"September 2019,LGBTQ+,Speculative Fiction",Book Club,"Led by Lambda finalist CB Lee, we read & discuss Queer authors, books, and topics across genres (mostly fiction). If you’re tired of book clubs that don’t actually talk about the book, then you just found what you’re looking for.
",http://lastbookstorela.com/events/queer-book-club-with-cb-lee/,http://lastbookstorela.com/wp-content/uploads/2019/08/griefkeeper.jpg,Pending Review
1227,"Gary Marcus discusses and signs ""Rebooting AI""",9/19/2019,7:00 PM,Vroman's - Main,Free,"September 2019,Nonfiction",Discussion and Signing,"Vroman's Bookstore presents an evening with Gary Marcus and ""Rebooting AI: Building Artificial Intelligence We Can Trust"". This book provides a lucid, clear-eyed assessment of the current science and offers an inspiring vision of how a new generation of AI can make our lives better. ",https://www.vromansbookstore.com/event/gary-marcus-discusses-and-signs-rebooting-ai-building-artificial-intelligence-we-can-trust,https://www.vromansbookstore.com/sites/vromansbookstore.com/files/9-19%20Gary%20Marcus.png,Pending Review
1314,Chasing the Elusive Dream with Made in L.A. Writers at the Last Bookstore,9/19/2019,7:30 PM,Last Bookstore,Free,"September 2019,Fiction,Short Story Collections",Reading and Discussion,"The Last Bookstore welcomes Made in L.A. Writers on September 19 at 7:30 p.m. to read from and discuss their latest fiction anthology. What are dreams made of and why are they so elusive? The editors and contributors will discuss stories of obsession, longing, addiction, and ambition and how L.A. makes for the perfect setting for short fiction.",http://lastbookstorela.com/events/chasing-the-elusive-dream-with-made-in-l-a-writers/,http://lastbookstorela.com/wp-content/uploads/2019/08/MILA_V2_Postcard-LastBookstore_Square.png,Pending Review
1135,"Marie Forleo discusses and signs ""Everything is Figureoutable""",9/20/2019,8:00 PM,Other - see description,Purchase Required,"September 2019,Healing | Self-Help | Motivational",Discussion and Signing,"Come out to Skirball Cultural Center for an evening with Marie Foreleo and ""Everything Is Figureoutable."" This book is a whirlwind of power, humor, pragmatism and grace. Marie Forleo writes exactly the way she lives--with full-on enthusiasm, no-bullshit directness, and a ferocious commitment to self-accountability. ",https://www.booksoup.com/event/book-soup-skirball-presents-marie-forleo,https://www.booksoup.com/sites/booksoup.com/files/MARIE-FORLEO-eventbrite.jpg,Pending Review
1164,"Peter Seth discusses and signs ""What It Was Like""",9/20/2019,7:00 PM,Book Soup,Free,"September 2019,Fiction,Mystery | Crime | Horror | Thriller",Discussion and Signing,"If you enjoy thriller novels, check out Peter Seth and ""What It Was Like"" at Book Soup. This book is a story about all kinds of love -- the obsessive first love of two unforgettable teenagers as well as the layers of love that can lie in tortuous wait between parents and children, a love as deep and hidden as an ominous quarry.",https://www.booksoup.com/event/peter-seth-discusses-and-signs-what-it-was,https://images.booksense.com/images/905/881/9781611881905.jpg,Pending Review
1228,Rocky Lang and Barbara Hall discuss and sign Letters from Hollywood,9/20/2019,7:00 PM,Vroman's - Main,Free,"September 2019,Nonfiction",Discussion and Signing,"Rocky Lang and Barbara Hall will discuss and sign ""Letters from Hollywood: Inside the Private World of Classic American Movivemaking."" This book reproduces in full color scores of entertaining and insightful pieces of correspondence from some of the most notable and talented film industry names of all time--from the silent era to the golden age, and up through the pre-email days of the 1970s.",https://www.vromansbookstore.com/event/rocky-lang-and-barbara-hall-discuss-and-signs-letters-hollywood-inside-private-world-classic,https://www.vromansbookstore.com/sites/vromansbookstore.com/files/9-20%20Lang%20and%20Hall.png,Pending Review
1277,The Difficult to Name Reading Series ,9/20/2019,8:00 PM,Stories Books and Cafe,Free,"September 2019,All Genres",Reading,"A reading series hosted by Ryan Sartor featuring readings and performances by a variety of artists, in conversation with guests and hosted  by My Brother's Sneaker. This event starts at 8PM. 

Location: Echo Park, Los Angeles, CA",https://storiesla.com/?q=h.calevents,https://storiesla.com/i/8034753/events_images/event_image_7424.jpg,Pending Review
1308,"Jess Row discusses and signs ""White Flights"" ",9/20/2019,7:30 PM,Skylight Books,Free,"September 2019,Nonfiction",Discussion and Signing,"Come out to Skylight Books for an evening with Jess Row and ""White Flights."" This book is a meditation on whiteness in American fiction and culture, Jess Row ties “white flight”—the movement of white Americans into segregated communities, whether in suburbs or newly gentrified downtowns—to white writers setting their stories in isolated or emotionally insulated landscapes.",https://www.skylightbooks.com/event/jess-row-reads-his-new-book-white-flights,,Pending Review
1165,"Caleb Crain and Elaine Blaire discuss and sign ""Overthrow""",9/21/2019,4:00 PM,Book Soup,Free,"September 2019,Fiction,What's Hot in September 2019",Discussion and Signing,"Caleb Crain and Elaine Blair will discuss ""Overthrow"" at Book Soup. This book is a story about the aftermath of the search for a new moral idealism, in a world where new controls on us--through technology, surveillance, the law--seem to be changing the nature and shape of the boundaries that we imagine around our selves. ",https://www.booksoup.com/event/caleb-crain-elaine-blair-discusses-and-signs-overthrow,https://images.booksense.com/images/456/560/9780525560456.jpg,Pending Review
1258,"Paddy Hirsch discusses and signs ""Hudsons's Kill""",9/21/2019,5:00 PM,Vroman's - Main,Free,"September 2019,Mystery | Crime | Horror | Thriller",Discussion and Signing,"Join Paddy Hirsch at Vroman's Bookstore for a discussion and signing of ""Hudson's Kill: A Justice Flanagan Thriller."" This book is a part thriller, part love story and part cautionary tale of a tense, violent and atmospheric crime thriller set in 1799 when the white-collar criminals carried switchblades and human lives were traded like sacks of grain.",https://www.vromansbookstore.com/event/paddy-hirsch-discusses-and-signs-hudson%E2%80%99s-kill-justice-flanagan-thriller,https://www.vromansbookstore.com/sites/vromansbookstore.com/files/9-21%20Paddy%20Hirsch.png,Pending Review
1261,"Colette Sartor discusses and signs ""Once Removed"" with Liz Harmer",9/21/2019,5:00 PM,Skylight Books,Free,"September 2019,Short Story Collections",Discussion and Signing,"Come see Colette Sartor, in conversation with Liz Harmer, about her debut short story collection ""Once Removed."" This book is a short story collection about women who carry the burdens imposed in the name of intimacy--the secrets kept, the lies told, the disputes initiated--as well as the joy that can still manage to triumph.",https://www.skylightbooks.com/event/colette-sartor-reads-her-debut-short-story-collection-once-removed-liz-harmer,https://images.booksense.com/images/696/355/9780820355696.jpg,Pending Review
1075,"Zenobia Neil discusses and signs ""The Queen of Warriors""",9/22/2019,5:00 PM,Skylight Books,Free,"September 2019,Speculative Fiction",Discussion and Signing,"Come see Zenobia Neil read, discuss and sign ""The Queen of Warriors."" This book is a graphic novel with compelling and intricate characters. It looks at different relationships and the contradictions in them.  ",https://www.skylightbooks.com/event/zenobia-neil-reads-her-new-novel-queen-warriors,,Pending Review
1168,"Nancy Boyarsky discusses and signs ""The Ransom: A Nicole Graves Mystery""",9/22/2019,3:00 PM,Book Soup,Free,"September 2019,Mystery | Crime | Horror | Thriller",Discussion and Signing,"Join Nancy Boyarsky at Book Soup for a discussion and signing of ""The Ransom: A Nicole Graves Mystery."" This book is an exciting mystery featuring a character, Nicole Graves, featured in a series of novels empowered by mystery and suspense. It explores danger, romance and the thrill of survival in a page-turning novel readers will not be able to put down. ",https://www.booksoup.com/event/nancy-boyarsky-discusses-and-signs-ransom-nicole-graves-mystery,https://images.booksense.com/images/170/533/9781611533170.jpg,Pending Review
1229,"Arthur Dong discusses and signs ""Hollywood Chinese""",9/22/2019,4:00 PM,Vroman's - Main,Free,"September 2019,Nonfiction,Film,What's Hot in September 2019",Discussion and Signing,"Come see Arthur Dong discuss and sign ""Hollywood Chinese: The Chinese in American Feature Films."" This book presents an intimate look at the Chinese American role and influence in Hollywood, from some of the earliest films set in America’s Chinatowns to the contemporary artists remaking the face of Hollywood. ",https://www.vromansbookstore.com/event/arthur-dong-discusses-and-signs-hollywood-chinese-chinese-american-feature-films,https://www.vromansbookstore.com/sites/vromansbookstore.com/files/9-22%20Arthur%20Dong.png,Pending Review
867,"Tayo Rockson discusses and signs ""How To Connect Effectively Across Cultures"" ",9/23/2019,7:30 PM,Last Bookstore,Free,"September 2019,Nonfiction",Discussion and Signing,"Tayo Rockson will discuss and sign ""How To Connect Effectively Across Cultures"" at The Last Bookstore. This book is an innovative and timely guide that illustrates how to leverage differences to move beyond unconscious biases, manage a culturally-diverse workplace, create an environment for more tolerant schooling environments, more trusted media, communicate across borders, find and retain diverse talent, and bridge the gap between working locally and expanding globally.
",http://lastbookstorela.com/events/how-to-connect-effectively-across-cultures-with-tayo-rockson/,,Pending Review
1216,Hybrid Bodies/Monstrous Texts reading and signing,9/23/2019,7:00 PM,Book Soup,Free,"September 2019,Fiction,What's Hot in September 2019",Reading and Signing,"Our hybrid texts engage the physical body through troubling traditional boundaries of the narrative ""I"". We come bearing narrative shape-shifters, the fluid, multiple, and plural “I,” the blurred and boundary-defying and excessive “I.” We are autofiction, autotheory, outlier work, work that hovers in the margins. What you long for and what you fear. ",https://www.booksoup.com/event/hybrid-bodiesmonstrous-texts,https://images.booksense.com/images/334/814/9781945814334.jpg,Pending Review
1230,"Abby Jimenez and Maureen Lenker discuss and sign ""The Friend Zone""",9/23/2019,7:00 PM,Vroman's - Main,Free,"September 2019,Romance",Discussion and Signing,"Check out Abby Jimenez in conversation with Maureen Lenker about ""The Friend Zone"" at Vroman's Bookstore. This book will have you laughing one moment and grabbing for tissues the next as it tackles the realities of infertility and loss with wit, heart, and a lot of sass.",https://www.vromansbookstore.com/event/abby-jimenez-maureen-lenker-entertainment-weekly-discusses-and-signs-friend-zone,https://www.vromansbookstore.com/sites/vromansbookstore.com/files/9-23%20Abby%20Jimenez_0.png,Pending Review
1276,"Ginny Hogan discusses and signs ""Toxic Femininity in the Workplace""",9/23/2019,7:00 PM,Chevalier's Books,Free,"September 2019,Nonfiction",Discussion and Signing,"Ginny Hogan will discuss and sign ""Toxic Femininity in the Workplace"" at Chevalier's Books. This book is explores themes of sexism, workplace gender dynamics, and the challenges facing women at work (particularly in STEM fields) with disarming wit. ",https://www.chevaliersbooks.com/ginny-hogan,https://static.wixstatic.com/media/308b68_670662a632ae4d5495502514db6486ac~mv2.jpg,Pending Review
955,"Saul Austerlitz discusses and signs ""Generation Friends"" ",9/24/2019,7:30 PM,Last Bookstore,Free,"September 2019,Nonfiction",Discussion and Signing,"Come out to The Last Bookstore for an evening with Saul Austerlitz and ""Generation Friends."" This book guides readers through Hollywood politics, notes from the network, and a complicated casting process; the author documents the creation of the legendary television show, Friends.",http://lastbookstorela.com/events/generation-friends-with-saul-austerlitz/,http://lastbookstorela.com/wp-content/uploads/2019/05/generationfriends.jpg,Pending Review
1170,Tom Sturges discusses and signs Preston Sturges,9/24/2019,7:00 PM,Book Soup,Free,"September 2019,History,Film",Discussion and Signing,"Join Tom Sturges at Book Soup for a discussion and signing of ""Preston Sturges: The Last Years of Hollywood's First Writer-Director."" This book offers a new critical appreciation of Sturges' whole oeuvre, incorporating a detailed study of the last ten years of his life from new primary sources.",https://www.booksoup.com/event/tom-sturges-discusses-and-signs-preston-sturges-last-years-hollywoods-first-writer-director,https://images.booksense.com/images/927/209/9781783209927.jpg,Pending Review
1232,"Howard Ruffner discusses and signs ""Moments of Truth""",9/24/2019,7:00 PM,Vroman's - Main,Free,"September 2019,History,Art",Discussion and Signing,"Howard Ruffner will discuss and sign ""Moments of Truth: A Photographer's Experience of Kent State 1970."" This book reproduces a collection of nearly 150 of his photographs and offers a stirring narrative in which the author revisits his work and attempts to further examine these events and his own experience of them. ",https://www.vromansbookstore.com/event/howard-ruffner-discusses-and-signs-moments-truth-photographers-experience-kent-state-1970,https://www.vromansbookstore.com/sites/vromansbookstore.com/files/9-24%20Howard%20Ruffner.png,Pending Review
1273,"Ben Westoff discusses and signs ""Fentanyl Inc.""",9/24/2019,7:00 PM,Chevalier's Books,Free,"September 2019,Nonfiction",Discussion and Signing,"Chevalier's Books presents Ben Westhoff for a discussion and signing of ""Fentanyl Inc.: How Rogue Chemists Are Creating the Deadliest Wave of the Opioid Epidemic."" This book  the first deep-dive investigation of a hazardous and illicit industry that has created a worldwide epidemic, ravaging communities and overwhelming and confounding government agencies that are challenged to combat it. ",https://www.chevaliersbooks.com/ben-westhoff,https://static.wixstatic.com/media/308b68_9b790ce11f3442518b229c991930a65e~mv2.jpg,Pending Review
1316,True Crime Tuesdays with James T. Bartlett,9/24/2019,7:30 PM,Last Bookstore,Purchase Required,"September 2019,Mystery | Crime | Horror | Thriller",Book Club,"As the great Tori Telfer says, being into True Crime is like having a taste for cilantro. Some folks don’t get it, but some do: you know who you are. Led by James T. Bartlett, a journalist and author of the Gourmet Ghosts guides to murder, suicide, and other mysteries from L.A.’s bars, hotels and restaurants.

At this meeting, the True Crime Tuesdays book club will read ""Tangled Vines"" by Frances Dinkelspiel. ",http://lastbookstorela.com/events/true-crime-tuesdays-with-james-t-bartlett/,http://lastbookstorela.com/wp-content/uploads/2019/07/tangledvines.jpg,Pending Review
1138,"LAMBDA Litfest reading by the contributors of ""Hustling Verse"" ",9/25/2019,7:30 PM,Skylight Books,Free,"September 2019,Underrepresented Voices,Poetry",Discussion and Signing,"Skylight Books presents LAMBDA Litfest reading by the contributors of ""Hustling Verse: An Anthology of Sex Workers Poetry."" This book is a fiercely groundbreaking exploration of intimacy, transactional sex, identity, healing, and resilience. Join editors Justin Ducharme and Amber Dawn, and local contributors, Milcah Halili and Garuda Love, in celebrating sex worker creativity and truth. 
",https://www.skylightbooks.com/event/lambda-litfest-reading-contributors-hustling-verse-anthology-sex-workers-poetry,https://images.booksense.com/images/819/527/9781551527819.jpg,Pending Review
1167,"Ottessa Moshfegh discusses and signs ""My Year of Rest and Relaxation"" with Alex Israel",9/25/2019,7:00 PM,Book Soup,Free,"September 2019,Fiction,What's Hot in September 2019",Discussion and Signing,"Come see Ottessa Moshfegh in conversation with Alex Israel about ""My Year of Rest and Relaxation"" at Book Soup. This book is a powerful answer to that question. Through the story of a year spent under the influence of a truly mad combination of drugs designed to heal our heroine from her alienation from this world, Moshfegh shows us how reasonable, even necessary, alienation can be.",https://www.booksoup.com/event/ottessa-moshfegh-alex-israel-discusses-and-signs-my-year-rest-and-relaxation,https://images.booksense.com/images/133/522/9780525522133.jpg,Pending Review
1233,"BJ Miller, Shoshana Berger and Sunita Puri discuss ""A Beginner's Guide to the End""",9/25/2019,7:00 PM,Vroman's - Main,Free,"September 2019,Healing | Self-Help | Motivational",Discussion and Signing,"Come see BJ Miller and Shoshana Berger in conversation with Sunita Puri about ""A Beginner's Guide to the End: Practical Advice for Living Life and Facing Death"" at the Vroman's Bookstore. This book is honest, funny, luminous, and essential. Full of real-world advice and hard-won insight, it’s a practical guide to dying that is actually much more about living.",https://www.vromansbookstore.com/event/bj-miller-and-shoshana-berger-conversation-sunita-puri-discusses-and-signs-beginner%E2%80%99s-guide,https://www.vromansbookstore.com/sites/vromansbookstore.com/files/9-25%20Miller%20and%20Berger.png,Pending Review
1274,"Susan Straight discusses and signs ""In the Country of Women"" ",9/25/2019,7:00 PM,Chevalier's Books,Free,"September 2019,Nonfiction",Discussion and Signing,"If you enjoy inspiring memoirs, check out Susan Straight and ""In the Country of Women: A Memoir"" at Chevalier's Books. This book is a valuable social history and a personal narrative that reads like a love song to America and indomitable women.",https://www.chevaliersbooks.com/copy-of-ginny-hogan-9-23,https://static.wixstatic.com/media/308b68_2f04a774543d4659bca2d0715691032f~mv2.jpg,Pending Review
1278,Bushwick Book Club Los Angeles Chapter,9/25/2019,8:00 PM,Stories Books and Cafe,Free,September 2019,Book Club,"Join The Bushwick Book Club at the Stories Books and Cafe as they read ""The Hidden Life of Trees"" by Peter Wohllenben. 

Location: 1716 W Sunset Blvd, Los Angeles",https://storiesla.com/?q=h.calevents,https://storiesla.com/i/8034753/events_images/event_image_7428.jpg,Pending Review
1076,"Annalee Newits discusses and signs ""The Future of Another Timeline"" with Sean Carroll ",9/26/2019,7:30 PM,Skylight Books,Free,"September 2019,Speculative Fiction",Discussion and Signing,"Annalee Newitz and Sean Carroll will discuss and sign ""The Future of Another Timeline"" at Skylight Books. This book is a glorious tale of hope in the face of outrage, an anthem of timeless resistance against the powers that would lead us to our worst futures.",https://www.skylightbooks.com/event/annalee-newitz-reads-their-new-novel-future-another-timeline-sean-carroll,https://images.booksense.com/images/107/392/9780765392107.jpg,Pending Review
1217,A Panel and Reading on the series of In A Body As Queer As Nature ,9/26/2019,7:00 PM,Book Soup,Free,"September 2019,LGBTQ+,Poetry,What's Hot in September 2019",Panel Discussion,"Book Soup presents a panel that takes up the question of eco-poetics as a queer, indigenous, and femme practice. The panelists will discuss their relationships to land-body intimacies, and the overt and discreet ways these concerns manifest in their work. How does ecopoetic practice link us to the collective? We will discuss naming as both a personal and writerly problem and the related issue of sounding. ",https://www.booksoup.com/event/body-queer-nature-queerfemmeancestral-ecopoetics-panel-and-reading,https://images.booksense.com/images/394/595/9781556595394.jpg,Pending Review
1241,"Barbara Netterson-Horowitz, Kathryn Bowers, and Katharine Gammon discuss and sign ""Wildhood""",9/26/2019,6:30 PM,DIESEL Bookstore Brentwood,Free,"September 2019,Nonfiction",Discussion and Signing,"Diesel's Bookstore presents Barbara Netterson-Horowitz and Kathryn Bowers, in conversation with Katharine Gammon about ""Wildhood: The Epic Journey from Adolescence to Adulthood in Humans and Others Animals."" This book is a profound and necessary guide to the perilous, thrilling, and universal journey to adulthood on planet earth. ",https://www.dieselbookstore.com/event/thursday-september-26th-630-pm-barbara-natterson-horowitz-and-kathryn-bowers-discuss-and-sign,https://images.booksense.com/images/699/164/9781501164699.jpg,Pending Review
1285,"Jacqueline Suskin discusses and signs ""Help in the Dark Season""",9/26/2019,7:30 PM,Last Bookstore,Free,"September 2019,Healing | Self-Help | Motivational",Discussion and Signing,"The Last Bookstore presents Jacqueline Suskin to discuss and sign ""Help in the Dark Season"". This book explores the pathway of human love as it begins in the dark, moves into parental hands, transfers into experiments of the heart, grows, breaks, and ultimately transforms us more than any other experience we withstand.",http://lastbookstorela.com/events/help-in-the-dark-season-with-jacqueline-suskin/,http://lastbookstorela.com/wp-content/uploads/2019/08/helpinthedarkseason.jpg,Pending Review
1286,"Stephen Kinzer discusses and signs ""Poisoner in Chief"" ",9/26/2019,7:00 PM,Chevalier's Books,Free,"September 2019,Nonfiction",Discussion and Signing,"Join Stephen Kinzer for a discussion and signing of ""Poisoner in Chief"" at Chevalier's Books. In this book, the bestselling author of ""All the Shah's Men"" and ""The Brothers"" tells the astonishing story of the man who oversaw the CIA’s secret drug and mind-control experiments of the 1950s and ’60s.",https://www.chevaliersbooks.com/stephen-kinzer,https://static.wixstatic.com/media/308b68_2d4ec936832247b780a92e53acb07718~mv2.jpg,Pending Review
1218,A Panel on the Importance of Queer History in YA Lit,9/27/2019,7:00 PM,Book Soup,Free,"September 2019,LGBTQ+,Young Adult,What's Hot in September 2019",Panel Discussion,"Moderated by young adult author, Amy Spalding  join authors James Brandon and Abdi Nazemian for a roundtable discussion about why writing Queer History in Young Adult canon is not only an important aspect to the popular genre, but a necessity in documenting our history for young people today. ",https://www.booksoup.com/event/importance-queer-history-ya-lit,,Pending Review
1234,"Barbara Netterson-Horowitz, Kathryn Bowers, and Katharine Gammon discuss and sign ""Wildhood""",9/27/2019,7:00 PM,Vroman's - Main,Free,"September 2019,Nonfiction",Discussion and Signing,"Vroman's Bookstore presents Barbara Netterson-Horowitz and Kathryn Bowers, in conversation with Katharine Gammon about ""Wildhood: The Epic Journey from Adolescence to Adulthood in Humans and Others Animals."" This book is a profound and necessary guide to the perilous, thrilling, and universal journey to adulthood on planet earth. ",https://www.vromansbookstore.com/event/barbara-netterson-horowitz-and-kathryn-bowers-conversation-katharine-gammon-discuss-and-sign,https://www.vromansbookstore.com/sites/vromansbookstore.com/files/9-27%20Barbara%20and%20Kathryn.png,Pending Review
1309,"Jacqueline Woodson discusses and signs ""Red At the Bone"" with Kara Brown",9/27/2019,7:30 PM,Skylight Books,Free,"September 2019,Fiction",Discussion and Signing,"Come see Jacqueline Woodson in conversation with Kara Brown about ""Red At the Bone."" This book is an extraordinary new novel about the influence of history on a contemporary family, from the New York Times-bestselling and National Book Award-winning author of Another Brooklyn and Brown Girl Dreaming.
",https://www.skylightbooks.com/event/jacqueline-woodson-reads-her-new-novel-red-bone-kara-brown,,Pending Review
1166,"Michelle Penaloza discusses and signs ""Former Possessions of the Spanish Empire""",9/28/2019,3:00 PM,Book Soup,Free,"September 2019,Poetry",Discussion and Signing,"Join Michelle Penaloza as she discusses and signs ""Former Possessions of the Spanish Empire"" at Book Soup. This book is a work simultaneously culturally specific and universal, with a scope ambitious and emotionally complex, it explores questions of grief and violence, and negotiates loss across landscapes and spans of time.",https://www.booksoup.com/event/michelle-penaloza-discusses-and-signs-former-possessions-spanish-empire,,Pending Review
1251,USC PHD Writers of Color Showcase,9/28/2019,5:00 PM,Skylight Books,Free,"September 2019,Underrepresented Voices,What's Hot in September 2019",Reading,"How do people of color make literary careers? Find out in a showcase of POC writers in USC’s Ph.D. program in creative writing and literature. Part reading, part panel, the evening will demystify the multiple paths taken by writers of color at different stages of their careers.

Location: 1818 N Vermont Ave, Los Angeles, CA 90027",https://www.skylightbooks.com/event/usc-phd-writers-color-showcase,,Pending Review
1275,"Stuart Gibbs discusses and signs ""Charlie Thorne and the Last Equation""",9/28/2019,3:00 PM,Chevalier's Books,Free,"September 2019,Mystery | Crime | Horror | Thriller",Discussion and Signing,"Come out to Chevalier's Books for an afternoon with Stuart Gibbs and ""Charlie Thorne and the Last Equation."" This book is the first novel in a thrilling new series about the world’s youngest and smartest genius who’s forced to use her unbelievable code-breaking skills to outsmart Einstein.",https://www.chevaliersbooks.com/stuart-gibbs-9282019,https://static.wixstatic.com/media/308b68_7513cc4b82e048eb8ab16f1820eabc97~mv2.jpg,Pending Review
1257,Vroman's Local Author Day,9/29/2019,4:00 PM,Vroman's - Main,Free,"September 2019,All Genres",Discussion and Signing,"Vroman's Bookstore presents five authors and their novels at their Local Author Day event. Amina Warsuma will present and sign ""My Stars Are Still Shining: A Memoir."" Carol Gignoux will present and sign ""Your Innovator Brain: The Truth about ADHD."" Larry Hardin, Jeff Pearce, and Randy Torgerson present and sign ""Path of the Devil - Camino del Diablo: Based on True Events of a DEA Agent and Two Private Investigators."" ",https://www.vromansbookstore.com/event/vroman%E2%80%99s-local-author-day-introducing-amina-warsuma-carol-gignoux-and-larry-hardin-jeff-pearce,https://www.vromansbookstore.com/sites/vromansbookstore.com/files/9-29%20Local%20Author%20Day.png,Pending Review
1310,"Akwaeke Emezi discusses and signs ""Pet"" ",9/29/2019,5:00 PM,Skylight Books,Free,"September 2019,Young Adult,Speculative Fiction",Discussion and Signing,"Akwaeke Emezi will discuss and sign her new young adult novel ""Pet."" This book is an important narrative that teens will want to read to gain some perspective on the modern political environment. ",https://www.skylightbooks.com/event/akwaeke-emezi-reads-their-new-ya-novel-pet,,Pending Review
1110,"Benjamin Moser discusses ""Sontag""",9/30/2019,7:30 PM,Skylight Books,Free,"September 2019,Art",Discussion and Signing,"Skylight Books presents Benjamin Moser as he discusses ""Sontag: Her Life and Work."" This book includes an extraordinary knowledge of the subject, her milieu, her writings, her ideas, and her friends and family, beautiful prose, extraordinary insights, a capacity to understand her driven emotional life and her stellar intellectual life.",https://www.skylightbooks.com/event/benjamin-moser-discusses-his-new-book-sontag-her-life-and-work,https://images.booksense.com/images/391/896/9780062896391.jpg,Pending Review
1121,First Press Reading Series,9/30/2019,4:00 PM,Other - see description,Free,Poetry,Reading,"The First Press Reading Series is hosted by MORIA Literary Magazine on the campus of Woodbury University in Burbank, CA. It is free and open to the public. Four times a year, we bring a celebrated poet or writer to feature in an event that includes light refreshments and an open mic. Anyone can sign up to read in the open mic, for one piece of writing or three minutes (whichever is shorter). In the past, we have welcomed Neil Aitken, Suzanne Lummis, Brendan Constantine, Chiwan Choi, and Heidi Seaborn to campus, among others.

Location: Woodbury University, Burbank (Ahmanson Main Space)",https://www.moriaonline.com/first-press-reading-series,,Pending Review
1169,"Teresa Sorkin and Tullan Holmquist discuss and sign ""The Woman in the Park""",9/30/2019,7:00 PM,Book Soup,Free,"September 2019,Mystery | Crime | Horror | Thriller",Discussion and Signing,"Come see Teresa Sorkin and Tullan Holmquist discuss and sign ""The Woman in the Park"" at Book Soup. This book is a psychological thriller novel that follows the suspenseful journey of the female protagonist as she becomes suspect for all the people in her life going missing.   ",https://www.booksoup.com/event/teresa-sorkin-and-tullan-holmquist-discuss-and-sign-woman-park,https://images.booksense.com/images/994/308/9780825308994.jpg,Pending Review
1231,Paul Kreuger and S. Jae-Jones discuss and sign Steel Crow Saga,9/30/2019,7:00 PM,Vroman's - Main,Free,"September 2019,Speculative Fiction,What's Hot in September 2019",Discussion and Signing,"Join Paul Krueger and S. Jae-Jones for a discussion and signing of ""Steel Crow Saga."" In this fictional novel, four destinies collide in a unique fantasy world of war and wonders, where empire is won with enchanted steel and magical animal companions fight alongside their masters in battle. ",https://www.vromansbookstore.com/event/paul-krueger-conversation-s-jae-jones-discusses-and-signs-steel-crow-saga,https://www.vromansbookstore.com/sites/vromansbookstore.com/files/9-30%20Paul%20Kreger_0.png,Pending Review
1317,"E.R. Ramzipoor discusses and signs ""Stories of Resistance"" with Deb Spera",9/30/2019,7:30 PM,Last Bookstore,Free,"September 2019,What's Hot in September 2019",Discussion and Signing,"The Last Bookstore presents E.R. Ramizpoor in conversation with Deb Spera about her two novels of resistance, both ""Call Your Daughter Home"" and ""The Ventriloquists."" 

In Deb Spera’s novel Call Your Daughter Home, three women must unite to resist injustice in 1920s South Carolina: a mother of four, a first-generation freed slave, and a matriarch with an unspeakable family secret.

In E.R. Ramzipoor’s novel The Ventriloquists, a ragtag group of resistance fighters risk everything to pull an elaborate prank on the Nazis: writing, printing, and distributing a satirical Nazi newspaper under the Germans’ watch.",http://lastbookstorela.com/events/stories-of-resistance-e-r-ramzipoor-in-conversation-with-deb-spera/,http://lastbookstorela.com/wp-content/uploads/2019/08/IMG_0566.jpg,Pending Review